[Event "EYTCC Open U18 2022"]
[Site "Thessaloniki"]
[Date "2022.07.18"]
[Round "7.12"]
[White "Milikow, Elie"]
[Black "Pasztor, Balazs"]
[Result "1-0"]
[ECO "B90"]
[WhiteElo "2433"]
[BlackElo "2336"]
[Annotator "TA"]
[PlyCount "95"]
[EventDate "2022.07.12"]
[EventType "team-tourn"]
[EventCountry "GRE"]
[SourceTitle "playchess.com"]
[Source "ChessBase"]
[SourceQuality "1"]
[WhiteTeam "Israel"]
[BlackTeam "Hungary"]
[WhiteTeamCountry "ISR"]
[BlackTeamCountry "HUN"]
[TimeControl "40/5400+30:1800+30"]

{[%evp 18,95,3,0,22,33,14,18,24,20,30,28,89,76,71,79,74,62,108,110,121,117,119,107,110,112,104,59,172,184,168,164,159,178,174,142,154,96,122,100,92,94,79,98,129,125,118,0,116,118,91,91,180,10,83,92,191,182,187,75,103,114,264,264,307,298,393,360,587,579,713,712,5150,5181,5073,5073,4920,4890,644,643]} 1. e4 {[%emt 0:00:03]} c5 {[%emt 0:00:06]} 2. Nf3 {[%emt 0:00:10]} d6 {[%emt 0:00:06]} 3. d4 {[%emt 0:00:09]} cxd4 {[%emt 0:00:05]} 4. Nxd4 {[%emt 0:00:09]} Nf6 {[%emt 0:00:06]} 5. Nc3 {[%emt 0:00:14]} a6 {[%emt 0:00:06]} 6. f3 {[%emt 0:00:10]} e5 {[%emt 0:00:07]} 7. Nb3 {[%emt 0:00:08]} Be6 {[%emt 0:00:23]} 8. Nd5 {[%emt 0:00:25]} Bxd5 {[%emt 0:10:34]} 9. exd5 {[%emt 0:00:12]} Nbd7 {[%emt 0:01:43]} 10. Be3 {[%emt 0:01:17]} h5 {[%emt 0:01:29] B90: Sicilian Najdorf: Unusual White 6th moves, 6 Be3 Ng4 and 6 Be3 e5.} 11. Be2 {[%emt 0:03:50]} g6 {[%emt 0:03:47]} 12. Qd2 {[%emt 0:08:06]} Bg7 {[%emt 0:00:41] The position is equal.} 13. O-O {[%emt 0:08:32]} b6 {[%emt 0:00:48]} 14. a4 {[%emt 0:07:00]} a5 {[%emt 0:08:54]} (14... O-O $11) 15. Bb5 {[%emt 0:12:56]} O-O {[%emt 0:05:38]} 16. Rad1 {[%emt 0:03:27]} Nc5 {[%emt 0:11:20] [#]} 17. Qf2 $146 {[%emt 0:06:42]} ({Predecessor:} 17. Nxc5 bxc5 18. c3 e4 19. Bg5 Qb6 20. Bxf6 Bxf6 21. Qf4 Kg7 22. Qxe4 Ra7 23. Rde1 {½-½ (31) Sandor,T (1864)-Kuzmin,Y (2270) Corund 2017}) 17... Nfd7 {[%emt 0:05:24]} (17... Qc7 $14) 18. Nd2 $16 {[%emt 0:08:00][%cal Bb3d2,Bd2c4,Bc4a3,Ba3b5][%mdl 32]} Qc7 {[%emt 0:06:45]} 19. c3 {[%emt 0:03:27]} f5 {[%emt 0:05:17]} 20. Nc4 {[%emt 0:07:43]} f4 {[%emt 0:14:01]} 21. Bxc5 {[%emt 0:02:21]} Nxc5 {[%emt 0:00:11]} 22. Bc6 {[%emt 0:05:11]} Nxa4 {[%emt 0:09:47]} 23. Na3 $18 {[%emt 0:06:13]} Nc5 {[%emt 0:02:14]} 24. Nb5 {[%emt 0:00:53]} Qe7 {[%emt 0:00:29]} 25. b4 {[%emt 0:03:00]} Nb7 {[%emt 0:04:04]} 26. Qxb6 {[%emt 0:01:47]} Rfb8 {[%emt 0:02:59][%cal Ob7d8]} 27. Bxb7 {[%emt 0:07:48] 0x0.00144b51646adp-1022s more active pieces.} ({White should try} 27. Qc7 $1 {[%cal Rc7e7]} Qxc7 28. Nxc7) 27... Rxb7 $16 {[%emt 0:02:09]} 28. Qxd6 {[%emt 0:00:13]} axb4 {[%emt 0:00:18]} 29. Qxe7 {[%emt 0:01:30]} (29. cxb4 Qxd6 30. Nxd6 Rxb4 $14) 29... Rxe7 {[%emt 0:00:09]} 30. d6 {[%emt 0:01:19]} (30. cxb4 Rb7 31. Nc3 Rxb4 $14) 30... Rb7 {[%emt 0:02:09]} 31. Nc7 $36 {[%emt 0:01:34][%mdl 2048] White is in control.} Rc8 {[%emt 0:00:36] [#]} 32. c4 {[%emt 0:01:03]} ({Much weaker is} 32. d7 $6 Rd8 33. Ne6 Rdxd7 34. Rxd7 Rxd7 35. cxb4 Bf6 $11) (32. Ne6 $1 $16 {aiming for d7.} Rd7 33. cxb4) 32... Rbxc7 {[%emt 0:02:44]} (32... Kf7 $11 {remains equal.}) 33. dxc7 {[%emt 0:00:04]} Rxc7 $11 {[%emt 0:00:08][%mdl 4096] Endgame KRR-KRB} 34. Rd8+ {[%emt 0:00:49]} Kf7 {[%emt 0:01:08]} (34... Bf8 $16 {was called for.}) 35. Rc1 $2 {[%emt 0:00:37]} ({White should play} 35. Rfd1 $18) 35... Bf8 {[%emt 0:00:47]} (35... e4 $1 $11 {keeps the balance.}) 36. Kf1 {[%emt 0:00:24]} b3 {[%emt 0:00:35] [#]} (36... Bc5 $16) 37. Rb8 $1 $18 {[%emt 0:00:28]} b2 {[%emt 0:00:07]} 38. Rc3 {[%emt 0:00:41]} ({Worse is} 38. Rxb2 Ba3 39. Rbc2 Bxc1 40. Rxc1 h4 $11) (38. Rc2 $18 {has better winning chances.}) 38... Bc5 {[%emt 0:00:18]} 39. Rcb3 {[%emt 0:00:19] Black must now prevent R8b7.} ({Much worse is} 39. Rxb2 $6 Bd4 40. Rbc2 Bxc3 41. Rxc3 Ra7 $11) 39... Rc6 {[%emt 0:01:10] Black cannot hold the game after this.} (39... Bd4 $16 {might work better.}) 40. Rxb2 {[%emt 0:00:00]} Bd4 {[%emt 0:00:00]} 41. Rc2 {[%emt 0:01:22]} Ra6 {[%emt 0:01:47]} 42. Ke2 {[%emt 0:00:44]} Ke6 $2 {[%emt 0:00:16]} (42... Rc6 43. Kd3 Kf6) 43. c5 {[%emt 0:00:51][%cal Ob8b6] Rb6+! is the strong threat. White is clearly winning.} Kd7 {[%emt 0:01:55]} 44. c6+ {[%emt 0:00:25]} Rxc6 {[%emt 0:01:21]} 45. Rb7+ {[%emt 0:00:13]} Kd6 {[%emt 0:00:08]} 46. Rxc6+ {[%emt 0:00:06]} Kxc6 {[%emt 0:00:06]} 47. Rg7 {[%emt 0:00:08]} Kd5 {[%emt 0:01:01]} 48. Rxg6 {[%emt 0:00:07] Weighted Error Value: White=0.22 (precise) /Black=0.46} 1-0

[Event "EYTCC Open U18 2022"]
[Site "Thessaloniki"]
[Date "2022.07.18"]
[Round "7.13"]
[White "Budisavljevic, Luka"]
[Black "Zeneli, Klendi"]
[Result "1-0"]
[ECO "A05"]
[WhiteElo "2511"]
[BlackElo "1921"]
[Annotator "TA"]
[PlyCount "71"]
[EventDate "2022.07.12"]
[EventType "team-tourn"]
[EventCountry "GRE"]
[SourceTitle "playchess.com"]
[Source "ChessBase"]
[SourceQuality "1"]
[WhiteTeam "Serbia"]
[BlackTeam "Albania"]
[WhiteTeamCountry "SRB"]
[BlackTeamCountry "ALB"]
[TimeControl "40/5400+30:1800+30"]

{[%evp 20,71,31,22,38,0,24,18,19,15,16,23,50,0,0,0,0,0,0,0,0,0,-4,0,-16,-4,-12,-7,0,0,0,-38,146,39,42,13,242,304,274,103,212,163,379,387,392,375,480,499,491,480,3683,3557,2902,2601]} 1. Nf3 {[%emt 0:00:12]} Nf6 {[%emt 0:00:22]} 2. d4 {[%emt 0:00:35]} d5 {[%emt 0:00:06]} 3. c4 {[%emt 0:00:05]} e6 {[%emt 0:00:07]} 4. e3 {[%emt 0:00:05]} c6 {[%emt 0:00:04]} 5. Bd3 {[%emt 0:00:04]} Nbd7 {[%emt 0:00:16]} 6. O-O {[%emt 0:00:08]} Be7 {[%emt 0:01:09]} 7. b3 {[%emt 0:00:07]} b6 {[%emt 0:00:27]} 8. Bb2 {[%emt 0:00:05]} Bb7 {[%emt 0:01:02]} 9. Nbd2 {[%emt 0:00:07]} O-O {[%emt 0:01:11]} 10. Qe2 {[%emt 0:00:05]} c5 {[%emt 0:02:51]} 11. Rfd1 {[%emt 0:00:56]} Rc8 {[%emt 0:04:47] D30: Queen's Gambit Declined: Systems without Nc3.} 12. Ne5 {[%emt 0:03:32]} Bd6 {[%emt 0:15:48]} 13. Ndf3 {[%emt 0:05:49] [#]} Qe7 $146 {[%emt 0:00:43] The position is equal.} ({Predecessor:} 13... Qc7 14. Nxd7 Qxd7 15. dxc5 bxc5 16. Bxf6 gxf6 17. cxd5 Bxd5 18. Nd2 Qc6 19. e4 Qc7 20. exd5 Bxh2+ {1-0 (57) Agadzhanian,G (1448)-Burnside,J Gold Coast 2020}) 14. Nxd7 {[%emt 0:03:26]} Nxd7 {[%emt 0:01:27]} 15. cxd5 {[%emt 0:00:09]} Bxd5 {[%emt 0:06:56]} 16. Ba6 {[%emt 0:02:36]} (16. e4 $14 Ba8 17. e5) 16... Rcd8 $11 {[%emt 0:00:48]} 17. e4 {[%emt 0:00:44]} Ba8 {[%emt 0:01:41]} 18. e5 {[%emt 0:00:32]} Bb8 {[%emt 0:03:03]} 19. Ba3 {[%emt 0:06:20]} f6 {[%emt 0:04:09]} 20. Bc4 {[%emt 0:14:21]} fxe5 {[%emt 0:16:12]} 21. Nxe5 {[%emt 0:00:13]} Nxe5 {[%emt 0:00:37]} 22. dxe5 {[%emt 0:00:05]} Bd5 {[%emt 0:08:03] White should prevent ...Qg5.} 23. Bb2 {[%emt 0:15:42]} Rf5 {[%emt 0:09:22]} (23... Bc7 {keeps more tension.} 24. Rac1 Qg5 25. g3 Bxc4 26. Qxc4 Qf5) 24. Rd3 {[%emt 0:04:35]} Rdf8 {[%emt 0:03:03]} 25. Rf1 {[%emt 0:00:52] [#]} ({Avoid the trap} 25. Bxd5 $2 exd5 26. Re3 (26. Rxd5 $2 Rxf2 27. Qc4 b5 $19) 26... d4 $17) (25. f3 $5 {[%cal Rc4d5]}) 25... Rd8 {[%emt 0:07:44]} (25... Bxg2 $1 $15 {keeps the upper hand.} 26. Kxg2 b5) 26. f4 {[%emt 0:01:38]} ({Better is} 26. Rfd1 $1 $16) 26... Rff8 $14 {[%emt 0:02:24]} 27. Rh3 {[%emt 0:08:22]} Qf7 $2 {[%emt 0:01:25] [#]} (27... Bxc4 $11 {and Black has nothing to worry.} 28. Qxc4 (28. bxc4 Qd7 $11) 28... Qd7) 28. Bd3 $1 $18 {[%emt 0:03:39]} g6 {[%emt 0:01:10] [#]} 29. Rg3 $2 {[%emt 0:00:02]} (29. f5 $1 $18) 29... Qe8 {[%emt 0:02:07]} (29... Kh8 $16 {might work better.}) 30. h4 {[%emt 0:00:25][%cal Bh2h4,Bh4h5][%mdl 32] h5 is the strong threat.} Rf7 $2 {[%emt 0:01:23]} (30... Bc6 31. Rf2 (31. h5 Rxd3 32. Qxd3 Bb5 $14) 31... Rxd3 32. Qxd3 (32. Rxd3 Bb5 $14) 32... Rf5) 31. h5 {[%emt 0:00:42]} Rg7 {[%emt 0:00:59]} 32. Qg4 {[%emt 0:00:43]} Rdd7 {[%emt 0:02:12]} 33. hxg6 {[%emt 0:01:09] White is clearly winning.} hxg6 {[%emt 0:00:05]} 34. Bxg6 {[%emt 0:00:10]} Qd8 {[%emt 0:00:42]} (34... Qxg6 $142 35. Qxg6 Rxg6 36. Rxg6+ Rg7) 35. Qh5 {[%emt 0:00:06] Intending f5 and mate.} Be4 {[%emt 0:00:33]} 36. f5 {[%emt 0:01:21] Weighted Error Value: White=0.25 (precise) /Black=0.57} 1-0

[Event "EYTCC Open U18 2022"]
[Site "Thessaloniki"]
[Date "2022.07.18"]
[Round "7.14"]
[White "Xhembulla, Aleksander"]
[Black "Tadic, Stefan"]
[Result "0-1"]
[ECO "B31"]
[WhiteElo "1909"]
[BlackElo "2356"]
[Annotator "TA"]
[PlyCount "56"]
[EventDate "2022.07.12"]
[EventType "team-tourn"]
[EventCountry "GRE"]
[SourceTitle "playchess.com"]
[Source "ChessBase"]
[SourceQuality "1"]
[WhiteTeam "Albania"]
[BlackTeam "Serbia"]
[WhiteTeamCountry "ALB"]
[BlackTeamCountry "SRB"]
[TimeControl "40/5400+30:1800+30"]

{[%evp 22,56,60,59,91,52,72,24,27,27,98,67,99,3,3,3,3,3,0,-116,-95,-204,-204,-195,-197,-359,-356,-343,-326,-668,-663,-648,-655,-796,-828,-742,-772]} 1. e4 {[%emt 0:00:02]} c5 {[%emt 0:00:56]} 2. Nf3 {[%emt 0:00:05]} Nc6 {[%emt 0:00:53]} 3. Bb5 {[%emt 0:00:07]} g6 {[%emt 0:03:03]} 4. O-O {[%emt 0:00:18]} Bg7 {[%emt 0:00:03]} 5. c3 {[%emt 0:00:07]} Nf6 {[%emt 0:02:53]} 6. Re1 {[%emt 0:00:15]} O-O {[%emt 0:01:49]} 7. d4 {[%emt 0:00:15]} cxd4 {[%emt 0:04:51]} 8. cxd4 {[%emt 0:00:07]} d5 {[%emt 0:00:04]} 9. e5 {[%emt 0:00:06]} Ne8 {[%emt 0:03:17]} 10. Nc3 {[%emt 0:01:40]} Nc7 $1 {[%emt 0:05:44] 10...Nc7 is better than 10...Bg4.} 11. Bxc6 {[%emt 0:05:26]} bxc6 {[%emt 0:00:42]} 12. h3 {[%emt 0:00:10]} Ne6 {[%emt 0:09:38] B31: Sicilian: 2...Nc6 3 Bb5 g6.} 13. b3 {[%emt 0:04:19]} f6 {[%emt 0:13:06]} 14. exf6 {[%emt 0:06:15]} (14. Ba3 $16) 14... exf6 $11 {[%emt 0:04:12] White has an edge.} 15. Na4 {[%emt 0:06:15] [#]} f5 $146 {[%emt 0:14:52]} (15... Bd7 $11) ({Predecessor:} 15... Qd6 16. Nc5 Nf4 17. Bxf4 Qxf4 18. Ne6 Bxe6 19. Rxe6 Rac8 20. Rc1 Bh6 21. Rcxc6 Rxc6 22. Rxc6 {1-0 (59) Degraeve,J (2537)-Kuhn,C (2066) Menton 2019}) 16. Ne5 {[%emt 0:07:37]} f4 {[%emt 0:09:47]} 17. Nxc6 {[%emt 0:04:03] Pair of Knights!} (17. Ba3 $16 Bxe5 18. Rxe5) 17... Qh4 $1 {[%emt 0:00:31][%cal Of4f3]} 18. Qg4 {[%emt 0:23:03]} Qxg4 {[%emt 0:01:34]} 19. hxg4 {[%emt 0:00:26]} Nxd4 {[%emt 0:00:15]} 20. Ne7+ {[%emt 0:00:15]} (20. Nxd4 $11 {was the only way to keep the balance.} Bxd4 21. Bb2 Bxb2 22. Nxb2) 20... Kh8 $17 {[%emt 0:02:44] And now ...Nc2 would win.} 21. Rb1 {[%emt 0:04:42]} (21. Nxc8 $17 {was necessary.} Nc2 22. Rd1 Bxa1 23. Nd6) 21... Bxg4 $19 {[%emt 0:01:37] aiming for ...f3.} 22. Bb2 {[%emt 0:10:09] [#]} Ne2+ {[%emt 0:06:06]} 23. Kh2 $2 {[%emt 0:01:16]} (23. Kf1 {keeps fighting.} f3 24. Bxg7+ Kxg7 25. gxf3 Bxf3 26. Nxd5 (26. Rxe2 $2 Bxe2+ 27. Kxe2 Rae8 $19)) 23... f3 {[%emt 0:02:00]} 24. Bxg7+ {[%emt 0:11:47]} Kxg7 {[%emt 0:00:04]} 25. Nc5 $2 {[%emt 0:02:53]} (25. gxf3 Bxf3 26. Nc5) 25... Rae8 {[%emt 0:01:28] Black is clearly winning.} ({Worse is} 25... fxg2 26. Rxe2 Bxe2 27. Ne6+ Kf7 28. Nxf8 $17) 26. gxf3 {[%emt 0:02:08]} Rxe7 {[%emt 0:00:02]} 27. fxg4 {[%emt 0:00:09]} Rxf2+ {[%emt 0:00:04]} 28. Kh1 {[%emt 0:00:35]} Re3 {[%emt 0:00:02] Weighted Error Value: White=0.63/Black=0.08 (flawless)} 0-1

[Event "EYTCC Open U18 2022"]
[Site "Thessaloniki"]
[Date "2022.07.18"]
[Round "7.15"]
[White "Ivanovic, Marko"]
[Black "Ramaj, Ergit"]
[Result "1-0"]
[ECO "A45"]
[WhiteElo "2310"]
[BlackElo "1980"]
[Annotator "TA"]
[PlyCount "53"]
[EventDate "2022.07.12"]
[EventType "team-tourn"]
[EventCountry "GRE"]
[SourceTitle "playchess.com"]
[Source "ChessBase"]
[SourceQuality "1"]
[WhiteTeam "Serbia"]
[BlackTeam "Albania"]
[WhiteTeamCountry "SRB"]
[BlackTeamCountry "ALB"]
[TimeControl "40/5400+30:1800+30"]

{[%evp 9,53,0,0,11,70,83,93,79,78,64,70,84,65,4,77,91,192,146,289,290,289,286,278,273,273,215,228,127,210,94,95,95,98,0,0,-183,-183,-195,0,0,0,0,29997,29998,29998,29999]} 1. d4 {[%emt 0:00:05]} Nf6 {[%emt 0:00:06]} 2. Bf4 {[%emt 0:00:06]} g6 {[%emt 0:00:25]} 3. Nc3 {[%emt 0:00:21]} d5 {[%emt 0:00:33]} 4. e3 {[%emt 0:00:07]} Bg7 {[%emt 0:00:42]} 5. h4 {[%emt 0:00:05]} O-O {[%emt 0:06:04][%cal Oc7c5]} 6. h5 {[%emt 0:01:59] A45: Trompowsky Attack.} a6 {[%emt 0:05:14]} (6... c5 $11) 7. hxg6 $14 {[%emt 0:01:33]} hxg6 {[%emt 0:00:33][%cal Oc7c5] [#]} 8. Qf3 $146 {[%emt 0:01:27] White is better.} ({Predecessor:} 8. Bd3 Nc6 9. Qd2 Re8 10. O-O-O b5 11. f3 e6 12. g4 Ne7 13. Qh2 c6 14. Bh6 {1-0 (31) Piecha,L (1637)-Thatte,N (1284) London 2019}) 8... c5 {[%emt 0:04:21]} 9. Qg3 {[%emt 0:04:58] White is more active.} cxd4 10. exd4 {[%emt 0:01:05]} Nc6 {[%emt 0:32:57]} 11. Nf3 {[%emt 0:02:51]} (11. O-O-O $14) 11... Qb6 {[%emt 0:06:00]} (11... Bf5 $11) 12. O-O-O $16 {[%emt 0:03:09] aiming for Qh4.} Bg4 {[%emt 0:05:06]} (12... Bf5 $16 {was worth a try.}) 13. Be5 {[%emt 0:26:35]} (13. Bc7 $1 $18 {[%cal Rc7b6]} Qa7 14. Be5 Bxf3 15. gxf3 (15. Qxf3 b5 $14)) 13... Bh5 {[%emt 0:12:55]} (13... Bxf3 $16 14. Qxf3 Rfd8) 14. Bxf6 $18 {[%emt 0:11:33]} exf6 {[%emt 0:00:12]} 15. Nxd5 {[%emt 0:00:15]} Qa5 {[%emt 0:03:44]} 16. Bc4 {[%emt 0:06:38][%cal Oh1h5] Rxh5! is the strong threat.} Rad8 {[%emt 0:04:15] [#]} 17. Rxh5 {[%emt 0:03:38][%mdl 512]} gxh5 {[%emt 0:01:00]} 18. Nxf6+ {[%emt 0:00:07] Pair of Knights!} Kh8 {[%emt 0:00:26]} 19. Rh1 {[%emt 0:13:42]} Bxf6 $16 {[%emt 0:03:43]} 20. Ne5 $1 {[%emt 0:03:37][%cal Rh1h5]} Bg7 {[%emt 0:04:41]} (20... h4 {is a self mate.} 21. Rxh4+ Bxh4 22. Qxh4+ Kg8 23. Qg5+ Kh7 24. Bd3+ f5 25. Bxf5+ Rxf5 26. Qxf5+ Kh8 27. Qf6+ Kg8 28. Qf7+ Kh8 29. Ng6#) 21. Rxh5+ {[%emt 0:07:11]} (21. Nxf7+ $16 Rxf7 22. Bxf7 Bh6+ 23. f4) 21... Kg8 $11 {[%emt 0:00:12][%cal Ra5e1]} 22. c3 $2 {[%emt 0:00:46]} (22. b4 $1 $11 {and White has nothing to worry.} Qxb4 23. Qg6 Qe1+ 24. Kb2 Qb4+ 25. Kc1 Qe1+ 26. Kb2 Qb4+ 27. Kc1) 22... Nxe5 $19 {[%emt 0:02:11]} 23. Rg5 {[%emt 0:01:06] [#]} Nxc4 $2 {[%emt 0:00:11]} (23... Qb6 $1 $19 24. Qxe5 (24. Rxg7+ $2 Kh8 $19) 24... Qh6) 24. Rxg7+ $40 {[%emt 0:00:19][%mdl 128] White attacks.} Kh8 {[%emt 0:00:17]} 25. Rg4 {[%emt 0:02:12] Threatening mate with Rh4+. The board is on fire.} Rd5 $2 {[%emt 0:00:24][%mdl 8192]} (25... Qh5 $11 26. Rh4 Qxh4 27. Qxh4+ Kg7) 26. Qh4+ {[%emt 0:00:05]} Rh5 {[%emt 0:00:37]} 27. Qf6+ {[%emt 0:00:02] Weighted Error Value: White=0.30/Black=0.78} 1-0

[Event "EYTCC Open U18 2022"]
[Site "Thessaloniki"]
[Date "2022.07.18"]
[Round "7.16"]
[White "Boci, Petro"]
[Black "Ljepic, Andrej"]
[Result "1/2-1/2"]
[ECO "B32"]
[WhiteElo "1709"]
[BlackElo "2234"]
[Annotator "TA"]
[PlyCount "92"]
[EventDate "2022.07.12"]
[EventType "team-tourn"]
[EventCountry "GRE"]
[SourceTitle "playchess.com"]
[Source "ChessBase"]
[SourceQuality "1"]
[WhiteTeam "Albania"]
[BlackTeam "Serbia"]
[WhiteTeamCountry "ALB"]
[BlackTeamCountry "SRB"]
[TimeControl "40/5400+30:1800+30"]

{[%evp 17,92,46,46,39,41,13,25,32,33,0,0,0,-9,-8,0,0,0,-18,-4,-50,-29,-45,-45,-29,-32,-38,0,0,9,-19,-8,-4,0,-9,-8,-17,-10,-20,-22,-64,-31,-36,0,0,0,-23,-17,-21,0,0,0,-7,0,-21,-15,-22,0,0,0,0,4,0,0,0,0,-8,-8,-8,-8,-20,0,0,0,0,0,0,82]} 1. e4 {[%emt 0:00:07]} c5 {[%emt 0:00:16]} 2. Nf3 {[%emt 0:00:14]} Nc6 {[%emt 0:00:12]} 3. d4 {[%emt 0:00:11]} cxd4 {[%emt 0:00:16]} 4. Nxd4 {[%emt 0:00:08]} e5 {[%emt 0:00:13]} 5. Nb5 {[%emt 0:00:24]} a6 {[%emt 0:00:18]} 6. Nd6+ {[%emt 0:00:18]} Bxd6 {[%emt 0:00:06]} 7. Qxd6 {[%emt 0:00:08]} Qe7 {[%emt 0:00:04]} 8. Qd1 {[%emt 0:02:45]} Nf6 {[%emt 0:00:33]} 9. Nc3 {[%emt 0:00:52]} d6 {[%emt 0:00:36]} 10. Be2 {[%emt 0:03:01] B32: Sicilian: Löwenthal and Kalashnikov Variations.} Be6 {[%emt 0:00:31]} 11. O-O {[%emt 0:06:45]} O-O {[%emt 0:01:17]} 12. Be3 {[%emt 0:01:08] White has an edge.} Rac8 {[%emt 0:06:30]} 13. Bf3 {[%emt 0:07:24] [#]} Na5 $146 {[%emt 0:06:01]} ({Predecessor:} 13... Qc7 14. Rc1 h6 15. Nd5 Bxd5 16. exd5 Ne7 17. c4 Nf5 18. Bg4 Nxg4 19. Qxg4 Nxe3 20. fxe3 {½-½ (32) Om,K (2080)-Klasan,V (2364) Paracin 2018}) 14. Na4 {[%emt 0:11:19]} Nc4 {[%emt 0:13:01]} 15. Nb6 {[%emt 0:07:42]} Nxb6 {[%emt 0:05:08]} 16. Bxb6 {[%emt 0:00:12]} Rc6 {[%emt 0:00:08]} 17. Be3 {[%emt 0:05:08]} Rd8 {[%emt 0:04:22][%cal Bf8d8,Bd8d7,Bd7d5][%mdl 32]} 18. Qd2 {[%emt 0:06:51]} (18. Bg5 $11) 18... d5 {[%emt 0:12:58]} 19. Rfd1 {[%emt 0:03:29][%cal Re4d5]} Rd7 {[%emt 0:12:39]} 20. exd5 {[%emt 0:04:29]} Bxd5 {[%emt 0:14:12]} 21. Bxd5 {[%emt 0:02:27]} Rxd5 {[%emt 0:00:31]} 22. Qe2 {[%emt 0:03:36]} h6 {[%emt 0:03:23]} 23. a3 {[%emt 0:08:24]} Qe6 {[%emt 0:04:26]} 24. h3 {[%emt 0:02:05]} b5 {[%emt 0:04:21]} 25. Rxd5 {[%emt 0:01:37]} Nxd5 {[%emt 0:00:14][%cal Bf6d5,Bd5c7,Bc7e6,Be6g5][%mdl 32]} 26. Rd1 {[%emt 0:01:16]} f5 {[%emt 0:03:21]} 27. Re1 {[%emt 0:01:54]} e4 {[%emt 0:02:40]} 28. Bd4 {[%emt 0:03:41]} Qg6 {[%emt 0:00:35] [#] And now ...Nf4 would win.} (28... Nf4 $5 {[%cal Rf4e2]} 29. Qd2 Qd6 $15) 29. Qd2 {[%emt 0:03:25][%cal Od4g7] Prevents Nf4.} Nc7 {[%emt 0:01:24]} 30. Be5 {[%emt 0:01:26]} Ne6 {[%emt 0:00:32]} 31. Kh2 {[%emt 0:01:07]} Kh7 {[%emt 0:01:52]} 32. Re2 {[%emt 0:04:20] The position is equal.} Ng5 {[%emt 0:00:47][%cal Og5f3] [#] White must now prevent ...Nf3+!} 33. Qf4 {[%emt 0:02:15] Inhibits Nf3+.} Rc5 {[%emt 0:02:05][%cal Oc5e5] aiming for ...Rxe5!} 34. Bc3 {[%emt 0:03:13]} Rd5 {[%emt 0:01:02]} 35. Re1 {[%emt 0:01:31]} (35. Rd2 $5 {[%cal Rd2d5]} Ne6 36. Qb8 $11) 35... Ne6 {[%emt 0:00:33]} 36. Qe3 {[%emt 0:00:23]} (36. Qb8 {is interesting.} Nd4 37. Re3 Qf6 38. Re2) 36... Qg5 {[%emt 0:00:44]} 37. Qxg5 {[%emt 0:02:01]} Nxg5 $11 {[%emt 0:00:01][%mdl 4096] Endgame KRB-KRN} 38. h4 {[%emt 0:00:21]} Nf7 {[%emt 0:00:41]} 39. Kg3 {[%emt 0:00:32]} g5 {[%emt 0:00:22]} 40. hxg5 {[%emt 0:00:00]} hxg5 {[%emt 0:00:00]} 41. a4 {[%emt 0:03:59]} Kg6 {[%emt 0:03:12]} 42. axb5 {[%emt 0:00:47]} axb5 {[%emt 0:00:07]} 43. Kh3 {[%emt 0:02:20]} g4+ {[%emt 0:04:13]} 44. Kh4 {[%emt 0:01:19]} Nd8 {[%emt 0:03:09]} 45. f3 {[%emt 0:01:28]} gxf3 {[%emt 0:01:14]} 46. gxf3 {[%emt 0:01:28]} e3 {Weighted Error Value: White=0.09 (flawless) /Black=0.08 (flawless)} (46... exf3 $11 {remains equal.} 47. Kg3 Kf7) 1/2-1/2